bitfinex/quotes_ETHUSD_20251017
["timestamp","ask_amount","ask_price","bid_price","bid_amount"]
[1760683071519,30.45280816,3841.1,3841.0,0.00441712]
[1760683071725,26.89998,3840.3,3839.7,2.94204959]
[1760683071919,25.145186,3839.8,3839.7,2.94204959]
[1760683072193,7.541272,3839.8,3839.7,2.94204959]
[1760683072427,10.1455743,3839.8,3839.7,2.94204959]
[1760683072641,10.8796743,3839.8,3839.7,2.94204959]
[1760683072816,2.60491286,3838.9,3837.2,0.003]
[1760683073021,13.568479,3838.9,3837.2,0.003]
[1760683073325,0.05,3839.1,3838.2,0.2251]
[1760683073536,0.3221,3839.8,3838.2,0.2251]
[1760683073537,2.81,3839.0,3838.2,0.2251]
[1760683073730,0.05,3840.2,3838.9,0.4519]
[1760683073892,0.05,3841.2,3840.0,0.2251]
[1760683074092,0.1028,3841.8,3840.0,0.2251]
[1760683074093,2.729,3841.0,3840.0,0.2251]
[1760683074306,0.052,3842.4,3840.1,2.60409523]
[1760683074513,0.136,3841.2,3840.2,0.32810952]
[1760683074807,0.136,3841.2,3840.0,0.677]
[1760683075327,2.811,3841.0,3840.1,0.4519]
[1760683076338,0.04539511,3840.8,3840.1,0.4519]
[1760683076551,0.04539511,3840.8,3840.2,2.60403104]
[1760683076700,0.04539511,3840.8,3840.5,2.6037924]
[1760683076900,2.811,3841.0,3840.7,2.60369203]
[1760683077218,0.002,3842.4,3840.5,0.56596894]
[1760683077219,0.002,3842.4,3841.7,2.6030094]
[1760683077436,0.002,3842.4,3841.8,0.02602946]
[1760683077743,0.04538057,3843.1,3842.3,0.2251]
[1760683077939,1.309,3845.0,3842.4,0.4519]
[1760683078155,1.309,3845.0,3843.0,2.60209765]
[1760683078156,5.017854,3844.9,3843.0,2.60209765]
[1760683078361,7.92281,3844.0,3842.4,0.4519]
[1760683078679,18.123139,3843.8,3842.3,0.2251]
[1760683078948,1.728,3843.5,3842.1,0.4519]
[1760683079241,6.067089,3843.4,3842.1,0.4519]
[1760683079563,6.067089,3843.4,3842.0,0.2251]
[1760683079564,5.320518,3843.0,3841.4,0.4519]
[1760683079855,2.814,3842.9,3842.2,0.2251]
[1760683080003,0.04537188,3843.5,3842.2,0.2251]
[1760683080205,2.243189,3843.3,3842.2,0.2251]
[1760683080406,2.026189,3843.3,3842.2,0.2251]
[1760683080719,2.026189,3843.3,3842.3,0.4333]
[1760683080903,2.814,3843.4,3843.2,0.2259]
[1760683081103,2.814,3843.4,3843.3,3.03523063]
[1760683081349,0.04536196,3843.9,3843.3,1.019618]
[1760683081542,1.174,3845.0,3843.4,0.02601862]
[1760683081747,1.174,3845.0,3843.5,0.02601795]
[1760683081929,0.04535444,3845.3,3844.9,0.2259]
[1760683082133,4.170867,3847.0,3845.0,3.06005617]
[1760683082319,0.04533963,3846.5,3845.1,0.4333]
[1760683082522,0.482,3846.4,3845.2,2.60062606]
[1760683082710,2.676976,3846.3,3844.9,0.2259]
[1760683082909,0.482,3846.4,3844.9,0.2259]
[1760683083136,0.482,3846.4,3845.1,2.60070146]
[1760683083334,0.04533963,3846.5,3845.2,0.4333]
[1760683083515,0.04533963,3846.5,3845.2,0.45930644]
[1760683083725,0.04533963,3846.5,3846.4,2.82573361]
[1760683084046,0.214,3847.3,3846.4,0.6592]
[1760683084228,0.214,3847.3,3846.5,0.4333]
[1760683084604,0.214,3847.3,3846.4,0.2259]
[1760683084808,6.266391,3847.2,3846.4,0.2259]
[1760683085008,0.214,3847.3,3846.5,0.4333]
[1760683085208,0.214,3847.3,3847.1,0.2259]
[1760683085406,0.214,3847.3,3847.2,0.4333]
[1760683085610,0.25931312,3847.3,3847.2,0.4333]
[1760683086017,6.285954,3849.6,3847.2,0.45929292]
[1760683086219,0.04530605,3848.3,3847.2,0.4333]
[1760683086442,0.04530605,3848.3,3847.9,2.59879617]
[1760683086648,2.762625,3849.4,3848.2,0.2259]
[1760683086831,0.04529985,3848.4,3847.3,0.4333]
[1760683087018,0.272,3848.3,3847.3,0.4333]
[1760683087220,0.3173074,3848.2,3847.1,0.2259]
[1760683087546,0.1296,3847.4,3847.1,0.2259]
[1760683087750,0.1296,3847.2,3847.1,0.2259]
[1760683087907,0.1296,3847.1,3846.4,0.2259]
[1760683088110,0.1296,3846.8,3846.4,0.2259]
[1760683088320,5.673895,3848.0,3846.5,0.4333]
[1760683088540,0.1296,3846.6,3846.5,0.4333]
[1760683088754,0.1296,3846.6,3846.5,3.03306602]
[1760683088952,0.17491396,3847.1,3846.5,0.4333]
[1760683089162,0.04531396,3847.1,3846.5,0.4333]
[1760683089325,0.1296,3847.0,3846.5,0.4333]
[1760683089521,0.1296,3847.0,3846.6,0.4333]
[1760683089734,0.02566192,3846.9,3846.7,0.4333]
[1760683090033,0.02566192,3846.9,3845.9,0.6592]
[1760683090034,0.66266192,3846.9,3845.9,0.6592]
[1760683090233,0.1296,3846.2,3845.9,0.6592]
[1760683090567,0.1296,3846.6,3846.0,0.5629]
[1760683090729,0.1296,3846.2,3846.0,0.4333]
[1760683091060,0.1296,3846.2,3845.9,0.2259]
[1760683091360,0.04531807,3846.7,3845.5,0.4333]
[1760683091545,11.567351,3846.6,3845.0,0.2259]
[1760683091870,0.1296,3845.1,3844.8,0.2259]
[1760683092164,0.1296,3845.1,3844.9,0.4333]
[1760683092378,0.1296,3845.1,3844.8,0.2259]
[1760683092379,2.81,3845.6,3844.8,0.2259]
[1760683092528,2.81,3845.6,3844.0,0.2259]
[1760683092529,0.1296,3844.8,3844.0,0.2259]
[1760683092723,0.1296,3844.2,3844.0,0.2259]
[1760683093040,2.809,3844.5,3843.5,0.2259]
[1760683093247,0.1296,3843.5,3842.5,0.2259]
[1760683093438,0.1296,3843.5,3840.6,2.60375801]
[1760683093439,2.808,3843.5,3840.6,2.60375801]
[1760683093757,2.808,3843.5,3841.9,0.2259]
[1760683093758,3.340768,3843.4,3841.9,0.2259]
[1760683093962,3.340768,3843.4,3841.3,0.2259]
[1760683093963,2.165041,3843.3,3841.3,0.2259]
[1760683094149,0.149,3843.2,3841.0,0.4333]
[1760683094352,14.494059,3842.9,3841.0,0.4333]
[1760683094532,2.470449,3842.7,3840.3,0.4333]
[1760683094732,4.255371,3842.0,3839.6,0.4343]
[1760683094956,4.7595,3841.9,3840.1,0.4333]
[1760683095153,0.1318,3842.8,3840.1,0.4333]
[1760683095340,0.372,3842.7,3840.2,0.02604031]
[1760683095526,0.372,3842.7,3840.3,0.76223773]
[1760683095731,0.04537571,3842.1,3841.0,2.60348775]
[1760683095927,0.04537571,3842.1,3840.4,0.4333]
[1760683096261,0.04537571,3842.1,3840.0,0.2259]
[1760683096262,0.099,3842.0,3840.0,0.2259]
[1760683096468,2.0197,3841.9,3840.1,2.60409885]
[1760683096642,8.170034,3841.8,3839.8,0.4333]
[1760683096830,6.733738,3841.8,3839.8,0.4333]
[1760683097038,0.2211,3841.9,3839.8,0.4333]
[1760683097039,6.179,3841.4,3839.8,0.4333]
[1760683097255,6.179,3841.4,3839.2,0.4333]
[1760683097256,2.697085,3841.2,3839.2,0.4333]
[1760683097460,4.221599,3841.2,3839.2,0.4333]
[1760683097657,4.221599,3841.2,3838.8,0.003]
[1760683097860,1.728,3840.9,3838.8,0.003]
[1760683098044,0.1291,3839.7,3838.8,0.003]
[1760683098256,2.9371,3839.7,3838.8,0.003]
[1760683098456,6.205465,3839.7,3838.8,0.003]
[1760683099072,21.572225,3839.7,3838.8,0.003]
[1760683099370,2.808,3839.7,3838.8,0.003]
[1760683099580,8.3835116,3839.7,3838.8,0.003]
[1760683099798,10.9661366,3839.7,3838.8,0.003]
[1760683100071,15.4987926,3839.7,3838.8,0.003]
[1760683100236,9.0158376,3839.7,3838.8,0.003]
[1760683100440,8.7023746,3839.7,3838.8,0.003]
[1760683100635,2.8534076,3839.7,3838.8,0.003]
[1760683100972,2.8534076,3839.7,3838.9,2.60589442]
[1760683101281,2.8534076,3839.7,3839.1,0.6592]
[1760683101439,2.8534076,3839.7,3839.2,2.60470733]
[1760683101747,2.8534076,3839.7,3838.9,0.001]
[1760683101748,5.7957296,3839.7,3838.9,0.001]
[1760683101951,9.7330296,3839.7,3838.9,0.001]
[1760683102359,11.4610296,3839.7,3838.9,0.001]
[1760683102749,9.7956856,3839.7,3838.9,0.001]
[1760683103067,16.65296982,3839.7,3838.9,0.001]
[1760683103367,16.04041895,3839.7,3839.2,0.001]
[1760683103572,16.62861135,3839.7,3839.2,0.001]
[1760683103982,31.28255363,3839.4,3839.2,0.001]
[1760683104476,15.010917,3839.4,3839.2,0.001]
[1760683104680,13.774604,3839.4,3839.2,0.001]
[1760683104842,17.01277763,3839.4,3839.2,0.001]
[1760683105043,25.429882,3839.4,3839.2,0.001]
[1760683105351,25.379882,3839.4,3839.2,0.001]
[1760683105546,17.464307,3839.4,3839.2,0.001]
[1760683105746,8.225796,3839.4,3839.2,0.001]
[1760683105969,8.668378,3839.4,3839.2,0.001]
[1760683106175,8.994021,3839.4,3839.2,0.001]
[1760683106377,9.0394376,3839.4,3839.2,0.001]
[1760683106588,10.8667376,3839.4,3839.2,0.001]
[1760683106749,10.9167376,3839.4,3839.2,0.001]
[1760683106951,9.8477136,3839.4,3839.2,0.001]
[1760683107256,9.7484136,3839.4,3839.2,0.001]
[1760683107454,4.5804166,3839.4,3839.2,0.001]
[1760683107768,20.34490323,3839.4,3839.2,0.001]
[1760683107959,32.87928723,3839.4,3839.2,0.001]
[1760683108163,31.23262147,3839.3,3839.2,0.001]
[1760683108484,31.23262147,3839.3,3837.2,0.006]
[1760683108485,0.05,3838.4,3837.2,0.006]
[1760683108690,2.0853,3837.7,3837.2,0.006]
[1760683108888,2.56874,3838.1,3837.2,0.006]
[1760683109090,0.40885075,3839.3,3837.3,0.4282]
[1760683109261,0.04542619,3837.6,3837.3,0.4282]
[1760683109463,0.533,3838.0,3837.9,2.60559159]
[1760683109663,0.04541947,3838.5,3837.9,0.4282]
[1760683110010,0.04541947,3838.5,3838.0,0.4282]
[1760683110149,0.04541947,3838.5,3838.1,0.6599]
[1760683110355,0.04541947,3838.5,3837.2,0.30704766]
[1760683110566,0.04541947,3838.5,3837.3,3.03418946]
[1760683110780,0.505,3838.4,3837.5,2.60585458]
[1760683111002,0.505,3838.4,3838.3,0.2317]
[1760683111297,0.04541947,3838.5,3838.3,0.6599]
[1760683111460,0.04541947,3838.5,3837.7,0.4282]
[1760683111784,0.04541947,3838.5,3837.2,0.006]
[1760683112085,2.253,3838.4,3837.2,0.006]
[1760683112272,0.04541947,3838.5,3838.3,0.2317]
[1760683112475,2.806,3838.4,3838.1,0.2317]
[1760683112677,2.806,3838.4,3837.5,0.4282]
[1760683112984,2.806,3838.4,3837.2,0.006]
[1760683113151,2.806,3838.4,3837.6,0.4282]
[1760683113352,2.806,3838.4,3838.3,0.2317]
[1760683113553,2.806,3838.4,3838.3,0.6599]
[1760683114197,0.40872538,3839.4,3838.3,0.6599]
[1760683114359,3.21572538,3839.4,3838.3,0.98642786]
[1760683114555,3.21572538,3839.4,3838.4,0.4282]
[1760683115101,3.21572538,3839.4,3838.7,2.60504259]
[1760683115408,3.21572538,3839.4,3838.4,3.03344887]
[1760683115409,2.807,3839.4,3838.8,0.6599]
[1760683115608,2.807,3839.4,3838.9,0.4282]
[1760683115908,2.807,3839.4,3839.0,0.4282]
[1760683116129,0.04540828,3840.0,3839.9,2.60423448]
[1760683116272,0.04540828,3840.0,3839.9,0.4282]
[1760683116476,2.805,3841.1,3840.0,2.60416666]
[1760683116697,0.04539407,3840.7,3840.1,0.6599]
[1760683117006,0.04539407,3840.7,3839.6,0.2317]
[1760683117208,3.299865,3840.6,3839.4,0.4282]
[1760683117422,0.04539407,3840.7,3839.4,0.4282]
[1760683117906,5.421849,3840.6,3839.2,0.2317]
[1760683118092,0.40856529,3840.4,3839.2,0.2317]
[1760683118405,2.805,3840.3,3839.2,0.2317]
[1760683118705,0.0454041,3840.2,3839.2,0.2317]
[1760683118882,2.715489,3840.1,3838.3,0.2317]
[1760683119088,2.516403,3840.1,3838.3,0.2317]
[1760683119434,0.0454041,3840.2,3838.3,0.2317]
[1760683119435,6.344554,3839.7,3838.3,0.2317]
[1760683119578,0.40865202,3839.8,3838.3,0.2317]
[1760683119579,7.836756,3839.5,3838.3,0.2317]
[1760683119774,2.803,3839.4,3838.3,0.2317]
[1760683120005,5.438988,3839.3,3837.6,0.2317]
[1760683120210,2.60472418,3839.2,3837.6,0.2317]
[1760683120509,2.60472418,3839.2,3837.5,0.4282]
[1760683120510,11.898391,3839.0,3836.9,0.6599]
[1760683120716,0.1029,3839.1,3837.2,0.39620766]
[1760683120717,7.563977,3838.8,3837.2,0.39620766]
[1760683120873,6.312396,3838.8,3837.3,0.4282]
[1760683121074,0.40876103,3838.9,3837.3,0.4282]
[1760683121075,0.04541897,3838.6,3837.3,0.4282]
[1760683121275,2.802,3838.5,3837.2,0.006]
[1760683121876,2.802,3838.5,3837.3,0.02605999]
[1760683121877,3.21078363,3838.5,3837.3,0.02605999]
[1760683122078,2.802,3838.5,3838.3,0.001]
[1760683122516,2.84741519,3838.5,3838.4,0.4282]
[1760683122810,2.84741519,3838.5,3838.4,3.03345218]
[1760683122811,2.802,3838.5,3838.4,3.03345218]
[1760683123013,2.666,3839.7,3838.4,0.45425252]
[1760683123174,0.002,3840.1,3839.6,0.2317]
[1760683123374,0.002,3840.1,3840.0,2.60416666]
[1760683123610,0.002,3840.1,3840.0,3.15105166]
[1760683123820,0.002,3840.5,3840.4,2.60389542]
[1760683123977,0.101,3842.8,3840.4,0.02603895]
[1760683124179,2.801,3841.8,3840.4,0.15563895]
[1760683124411,0.1296,3840.9,3840.7,2.60367501]
[1760683124590,0.40842484,3842.4,3840.8,0.4282]
[1760683124792,0.1296,3841.7,3841.0,0.1296]
[1760683124979,0.1296,3841.4,3840.9,0.2317]
[1760683125183,2.801,3842.3,3841.0,0.4282]
[1760683125425,2.801,3842.3,3840.9,0.2317]
[1760683125426,0.9636,3841.6,3840.9,0.3613]
[1760683125712,0.9636,3841.6,3841.0,0.02603488]
[1760683125914,0.1296,3841.2,3840.9,0.2317]
[1760683126126,0.834,3841.6,3841.0,0.4282]
[1760683126481,0.87938073,3841.6,3841.1,2.60342089]
[1760683126682,0.87938073,3841.6,3841.3,2.60328534]
[1760683126878,0.87938073,3841.6,3841.2,1.04091922]
[1760683126879,0.87938073,3841.6,3841.4,3.03140942]
[1760683127134,0.834,3841.6,3841.5,0.4282]
[1760683127833,0.834,3841.6,3841.5,3.03134981]
[1760683128327,0.359,3841.6,3841.5,3.66494981]
[1760683128528,0.359,3841.6,3841.5,4.57147019]
[1760683128828,0.359,3841.6,3841.5,3.93787019]
[1760683130318,0.359,3841.6,3841.5,4.59750168]
[1760683130538,0.04537053,3843.0,3842.9,2.60220146]
[1760683130704,3.926916,3844.5,3842.8,0.1108]
[1760683130901,0.383,3844.6,3842.3,2.71338812]
[1760683130902,0.04536428,3843.8,3842.3,2.71338812]
[1760683131114,0.04536428,3843.8,3842.5,0.4282]
[1760683131315,0.04536428,3843.8,3843.5,2.60173135]
[1760683131517,0.04536428,3843.8,3842.7,0.02602336]
[1760683131716,0.04536428,3843.8,3842.8,0.4332]
[1760683131917,0.04536428,3843.8,3842.9,0.02602201]
[1760683132191,0.383,3844.6,3843.7,2.60165985]
[1760683132404,0.04535527,3844.3,3844.2,2.60132147]
[1760683132603,0.13357558,3847.3,3844.2,3.66812147]
[1760683132604,0.4359,3846.2,3844.2,3.66812147]
[1760683132803,0.40802875,3846.3,3844.3,0.65961253]
[1760683133023,0.13,3846.5,3844.5,0.6336]
[1760683133229,1.1505,3847.1,3844.6,2.62706132]
[1760683133532,0.923,3847.1,3844.8,0.6336]
[1760683133831,0.923,3847.1,3845.3,0.6336]
[1760683134040,0.923,3847.1,3845.4,0.45920509]
[1760683134217,0.923,3847.1,3845.6,0.6336]
[1760683134386,0.923,3847.1,3845.8,0.6336]
[1760683134591,0.002,3847.3,3847.1,2.59932642]
[1760683134904,0.002,3847.3,3847.2,0.65959292]
[1760683135145,0.002,3847.3,3847.2,1.09279292]
[1760683135432,0.002,3847.3,3847.2,0.6336]
[1760683135633,0.002,3847.3,3846.7,0.4332]
[1760683135835,0.002,3847.3,3846.7,2.59960868]
[1760683136049,0.002,3847.3,3847.2,0.1296]
[1760683136836,0.002,3847.3,3847.2,0.4332]
[1760683137336,0.002,3847.3,3847.2,2.82079292]
[1760683138050,0.002,3847.3,3847.2,5.61579292]
[1760683138232,0.002,3847.3,3847.2,8.18909299]
[1760683138437,0.002,3847.3,3847.2,13.78828896]
[1760683138752,0.005,3850.4,3847.3,0.6336]
[1760683138980,0.04528494,3850.0,3848.2,0.6336]
[1760683139126,0.04528494,3850.0,3849.4,2.59779082]
[1760683139470,0.04528494,3850.0,3849.5,0.02597739]
[1760683139672,0.005,3850.4,3848.9,0.02598144]
[1760683139837,0.429,3850.3,3848.3,0.6045]
[1760683140038,0.429,3850.3,3849.1,2.59799625]
[1760683140225,0.429,3850.2,3848.3,0.1713]
[1760683140629,0.429,3850.2,3848.4,0.4715]
[1760683140926,0.005,3850.4,3848.6,0.6336]
[1760683141119,0.005,3850.4,3848.7,0.3752512]
[1760683141120,0.04528181,3850.0,3848.7,0.3752512]
[1760683141461,0.6489,3849.9,3848.1,0.1713]
[1760683141778,0.6489,3849.9,3848.2,0.02598617]
[1760683141945,0.6489,3849.9,3847.6,0.02599022]
[1760683141946,0.002,3848.1,3847.6,0.02599022]
[1760683142130,0.002,3848.1,3847.1,0.0259936]
[1760683142330,0.002,3848.1,3847.6,0.4715]
[1760683142544,0.002,3848.1,3847.1,0.0259936]
[1760683142545,0.002,3848.1,3848.0,2.59875259]
[1760683142742,0.002,3848.1,3847.9,2.5987602]
[1760683143030,0.002,3848.1,3846.9,0.4715]
[1760683143229,0.002,3848.1,3847.1,0.0259936]
[1760683143433,0.002,3848.1,3847.2,0.02599292]
[1760683143680,0.002,3848.1,3847.2,2.59922631]
[1760683143885,0.002,3848.1,3847.3,0.02599225]
[1760683144089,0.002,3848.1,3847.1,0.1713]
[1760683144445,0.002,3848.1,3847.9,2.59878067]
[1760683144651,0.002,3848.1,3847.1,2.77065212]
[1760683144652,0.002,3848.1,3848.0,2.59875259]
[1760683144852,0.002,3848.1,3848.0,0.25987526]
[1760683145150,0.002,3848.1,3848.0,2.59875259]
[1760683145685,0.002,3848.1,3847.4,0.4715]
[1760683145886,0.002,3848.1,3848.0,2.59875259]
[1760683146095,0.002,3848.1,3848.0,3.25834011]
[1760683146247,0.002,3848.1,3848.0,5.45784011]
[1760683146560,0.05,3851.6,3848.0,5.45784011]
[1760683146561,0.05,3852.5,3848.3,0.6336]
[1760683146762,0.04528204,3850.2,3850.1,2.59733513]
[1760683146962,0.04528204,3850.2,3850.1,3.36053513]
[1760683147183,0.04528204,3850.2,3850.1,3.72840848]
[1760683147349,0.4733,3851.5,3849.8,0.2276]
[1760683147549,0.4733,3851.5,3849.9,5.39147006]
[1760683147550,0.04526688,3851.4,3849.9,5.39147006]
[1760683147784,0.47,3851.1,3849.1,0.6336]
[1760683148082,0.04526688,3851.4,3850.5,2.59699926]
[1760683148287,0.04526688,3851.4,3850.1,0.02597335]
[1760683148445,0.002,3853.1,3851.7,2.59625351]
[1760683148653,0.002,3853.1,3851.1,0.2276]
[1760683148654,0.002,3853.1,3851.6,0.6336]
[1760683148858,0.002,3853.1,3851.7,0.28331]
[1760683149058,0.13290263,3853.1,3851.5,0.6336]
[1760683149393,0.4704,3853.0,3850.9,0.4715]
[1760683149687,0.4704,3853.0,3850.1,2.59728026]
[1760683149688,0.1894,3852.9,3850.4,0.6336]
[1760683149851,0.45249935,3852.5,3850.5,0.02597065]
[1760683150051,0.45249935,3852.5,3850.3,0.4715]
[1760683150052,0.4676,3852.4,3850.3,0.4715]
[1760683150385,0.04525581,3852.5,3850.8,2.3616]
[1760683150551,0.13384381,3853.1,3851.8,2.59616814]
[1760683150751,0.13384381,3853.1,3851.9,2.59608817]
[1760683150995,0.13384381,3853.1,3852.0,2.59605399]
[1760683151203,0.13384381,3853.1,3853.0,2.59538022]
[1760683151410,0.002,3853.1,3853.0,3.71611824]
[1760683151691,0.002,3853.1,3853.0,4.18761824]
[1760683151854,0.002,3853.5,3853.4,3.22871081]
[1760683152055,0.002,3853.5,3853.4,4.98266191]
[1760683152387,0.002,3853.5,3853.0,0.48713802]
[1760683152585,0.002,3853.5,3852.8,0.6336]
[1760683152789,0.002,3853.5,3852.2,2.805]
[1760683152790,0.002,3853.5,3852.3,1.75395851]
[1760683152948,0.002,3853.5,3852.3,0.02595851]
[1760683153287,0.04524115,3853.3,3852.1,0.1795]
[1760683153447,0.04524115,3853.3,3851.7,0.02596256]
[1760683153651,0.3379,3853.2,3851.4,0.4715]
[1760683154084,0.3379,3853.1,3850.9,0.7640817]
[1760683154268,0.3379,3853.0,3850.8,0.02596862]
[1760683154587,0.3379,3853.0,3850.7,2.82450059]
[1760683154588,0.7736,3852.9,3850.9,0.4715]
[1760683154787,0.1936,3852.9,3851.0,0.02596728]
[1760683154974,0.3379,3853.0,3851.1,0.8031]
[1760683155176,0.3379,3853.0,3851.8,2.59617212]
[1760683155378,0.3379,3853.0,3851.6,2.59628399]
[1760683155555,0.1936,3853.3,3851.5,0.4715]
[1760683155753,0.3364,3853.2,3851.5,0.49746391]
[1760683155956,0.3364,3853.2,3851.3,3.23011384]
[1760683156254,0.3364,3853.2,3851.3,1.24623701]
[1760683156703,0.3364,3853.1,3851.1,0.1695]
[1760683156881,0.3364,3853.1,3851.6,2.59632137]
[1760683157078,0.1936,3853.3,3852.1,0.1296]
[1760683157079,0.1296,3852.8,3852.1,0.1296]
[1760683157394,0.002,3853.5,3852.6,2.5956384]
[1760683157596,0.002,3853.5,3852.7,2.5955759]
[1760683157780,0.002,3853.5,3852.1,0.651]
[1760683158099,0.002,3853.5,3852.2,2.59586022]
[1760683158320,0.002,3853.5,3853.4,2.59511081]
[1760683158520,0.002,3853.5,3853.4,0.6336]
[1760683159017,0.002,3853.5,3852.3,13.08679461]
[1760683159018,0.002,3853.5,3852.4,0.02595784]
[1760683159174,0.002,3853.5,3852.5,0.02595717]
[1760683159370,0.002,3853.5,3852.0,1.75396053]
[1760683159621,0.002,3853.5,3851.8,2.59616772]
[1760683159770,0.335,3853.4,3850.7,0.2276]
[1760683159973,0.335,3853.4,3851.2,0.4715]
[1760683159974,0.002,3853.2,3851.2,0.4715]
[1760683160379,0.002,3853.2,3851.3,0.02596525]
[1760683160579,0.002,3853.2,3851.4,0.4715]
[1760683160784,0.002,3853.2,3851.5,0.02596391]
[1760683160983,0.002,3853.2,3852.2,2.59589907]
[1760683161185,0.002,3853.2,3851.5,0.02596391]
[1760683161401,0.002,3853.2,3851.4,0.4715]
[1760683161601,0.335,3853.1,3851.1,0.1954666]
[1760683161808,0.335,3853.1,3851.2,0.4607]
[1760683161975,0.04524814,3852.8,3851.3,0.02596525]
[1760683162176,0.04524814,3852.8,3851.5,0.6336]
[1760683162493,0.002,3853.2,3851.7,0.6336]
[1760683162828,0.002,3853.2,3852.1,2.59598058]
[1760683163131,0.002,3853.2,3851.7,0.6336]
[1760683163283,0.002,3853.2,3852.5,2.5956518]
[1760683163478,0.002,3853.2,3851.5,0.4607]
[1760683163710,0.002,3853.2,3852.2,0.1795]
[1760683164025,0.002,3853.2,3851.8,0.02596188]
[1760683164328,0.002,3853.2,3850.9,0.4607]
[1760683164329,0.40716135,3853.0,3850.9,0.4607]
[1760683164624,0.5379,3852.9,3850.9,0.4607]
[1760683164779,0.5379,3852.9,3850.5,0.4607]
[1760683165174,0.1965,3852.9,3850.4,0.01]
[1760683165493,0.1994,3852.9,3850.7,2.59693042]
[1760683165692,0.1994,3852.9,3850.8,1.43275813]
[1760683165896,0.3386,3852.8,3850.9,0.02596795]
[1760683166220,0.1994,3852.9,3851.8,2.59614781]
[1760683166378,1.1766,3852.8,3851.3,0.1695]
[1760683166576,1.1766,3852.8,3850.9,0.4607]
[1760683166788,0.40723026,3852.7,3850.9,0.4607]
[1760683167112,0.1994,3852.9,3850.9,0.4607]
[1760683167113,0.04525042,3852.4,3851.9,2.59605527]
[1760683167325,0.2292,3852.9,3851.6,2.5963236]
[1760683167532,0.1296,3852.2,3851.6,0.1296]
[1760683168128,0.04524787,3852.5,3851.0,2.59672119]
[1760683168291,0.3091,3852.2,3850.2,0.4607]
[1760683168493,0.3091,3852.2,3849.9,0.2276]
[1760683168725,0.71639635,3852.2,3850.6,2.59699352]
[1760683168966,0.71639635,3852.2,3849.9,0.2276]
[1760683168967,0.04526012,3851.8,3850.5,2.59705328]
[1760683169224,0.04526012,3851.8,3850.5,0.26070533]
[1760683169421,0.04526012,3851.8,3851.2,2.59652598]
[1760683169790,0.04526012,3851.8,3851.3,2.59650023]
[1760683170002,0.04526012,3851.8,3850.4,2.60708814]
[1760683170003,0.04526012,3851.8,3851.6,2.59631422]
[1760683170218,0.04526012,3851.8,3850.4,0.01]
[1760683170419,0.04526012,3851.8,3850.6,2.59699787]
[1760683170628,0.04526012,3851.8,3851.3,2.59652125]
[1760683170775,0.04526012,3851.8,3851.5,2.596324]
[1760683170980,0.04526012,3851.8,3850.8,2.59686298]
[1760683171179,0.04526012,3851.8,3850.7,0.4607]
[1760683171407,0.04526012,3851.8,3850.8,0.02596862]
[1760683171638,0.04526012,3851.8,3851.7,2.59625619]
[1760683171951,0.04526012,3851.8,3851.7,2.62221875]
[1760683172560,3.0382,3852.9,3851.7,2.62221875]
[1760683172561,0.2292,3852.9,3851.7,2.62221875]
[1760683172766,0.2292,3853.7,3852.4,2.5957828]
[1760683173051,0.2292,3853.7,3851.7,0.48666256]
[1760683173052,0.2292,3853.7,3852.0,2.59605399]
[1760683173232,0.2292,3853.7,3852.6,2.59562687]
[1760683173548,0.2292,3853.7,3852.8,2.59548606]
[1760683173703,0.2292,3853.7,3852.9,2.59539471]
[1760683174041,0.3091,3853.1,3852.4,2.59577459]
[1760683174234,0.3091,3853.1,3851.1,1.728]
[1760683174235,0.3091,3853.1,3851.4,2.59645843]
[1760683174399,0.3091,3853.1,3851.5,0.02596391]
[1760683174602,0.3091,3853.1,3852.5,2.59565202]
[1760683174919,0.3091,3853.1,3852.6,0.02595649]
[1760683175230,0.3091,3853.1,3852.5,2.59565202]
[1760683175485,0.5383,3853.7,3852.6,0.02595649]
[1760683175648,0.5383,3853.7,3852.1,2.77548345]
[1760683175851,0.5383,3853.7,3851.5,2.59639101]
[1760683175852,0.2292,3852.5,3851.5,2.59639101]
[1760683176075,0.27444595,3853.0,3851.6,0.02596323]
[1760683176281,0.27444595,3853.0,3852.2,2.59591259]
[1760683176480,0.27444595,3853.0,3851.4,0.4607]
[1760683176858,0.27444595,3853.0,3852.3,2.59583349]
[1760683177181,0.27444595,3853.0,3851.8,2.59618879]
[1760683177382,0.04524595,3853.0,3851.9,0.02596121]
[1760683177553,0.04524595,3853.0,3852.7,2.59554076]
[1760683177752,0.04524595,3853.0,3852.3,0.1795]
[1760683177950,0.04524595,3853.0,3852.5,2.59571706]
[1760683178184,0.04524595,3853.0,3852.9,2.59544758]
[1760683178384,0.04524595,3853.0,3852.6,2.59558774]
[1760683178883,0.04524595,3853.0,3852.5,0.1296]
[1760683179095,0.04524595,3853.0,3852.8,2.59545701]
[1760683179298,0.04524595,3853.0,3852.2,0.1795]
[1760683179473,0.04524595,3853.0,3852.9,2.59544758]
[1760683179973,0.04524595,3853.0,3852.9,3.05614758]
[1760683180174,0.002,3853.2,3853.1,2.59531286]
[1760683180605,0.002,3853.2,3853.1,3.28361286]
[1760683181312,0.002,3853.2,3853.1,3.91721286]
[1760683181513,0.002,3853.2,3853.1,6.2964789]
[1760683182399,0.002,3853.2,3853.1,3.91721286]
[1760683183386,1e-08,3853.6,3853.4,0.6336]
[1760683183577,1e-08,3853.6,3853.5,4.98259389]
[1760683183782,1e-08,3853.6,3853.5,5.44329389]
[1760683183981,1e-08,3853.6,3853.1,0.2276]
[1760683184190,1e-08,3853.6,3852.7,2.82311771]
[1760683184416,1e-08,3853.6,3852.2,0.6402]